bitfinex/quotes_SOLUSD_20240818
["timestamp","ask_amount","ask_price","bid_price","bid_amount"]
[1723972349260,0.12549,142.42,142.37,2.11108459]
[1723972349448,0.12549,142.42,142.35,9.38]
[1723972349639,0.12549,142.42,142.36,2.11123987]
[1723972349840,0.12549,142.42,142.35,9.38]
[1723972350046,0.12549,142.42,142.36,2.11124065]
[1723972350272,0.12549,142.42,142.35,9.38]
[1723972350445,0.12549,142.42,142.37,9.38]
[1723972352880,7.14699,142.42,142.35,9.38]
[1723972353169,7.14699,142.42,142.36,2.11127193]
[1723972353366,7.14699,142.42,142.35,9.38]
[1723972353571,7.14699,142.42,142.36,2.11127349]
[1723972353761,7.14699,142.42,142.35,9.38]
[1723972353966,7.14699,142.42,142.36,2.11127271]
[1723972354184,7.14699,142.42,142.33,16.665]
[1723972354185,9.50549,142.42,142.33,16.665]
[1723972354342,9.50549,142.42,142.27,7.85719198]
[1723972354343,0.12549,142.38,142.34,2.11139888]
[1723972354547,13.70889,142.38,142.31,9.38]
[1723972354769,13.70889,142.38,142.32,2.11164821]
[1723972355071,13.70889,142.38,142.33,2.11164821]
[1723972355265,0.12549,142.37,142.31,9.38]
[1723972355470,0.12549,142.37,142.32,2.1117798]
[1723972355640,0.12549,142.37,142.31,9.38]
[1723972355845,0.12549,142.37,142.32,2.11177944]
[1723972356042,0.12549,142.37,142.31,9.38]
[1723972356266,0.12549,142.37,142.32,2.11177944]
[1723972356469,0.12549,142.37,142.31,9.38]
[1723972356677,0.12549,142.37,142.32,2.11177938]
[1723972356868,0.12549,142.37,142.31,9.38]
[1723972357058,0.12549,142.37,142.32,2.11177636]
[1723972357256,0.12549,142.37,142.31,9.38]
[1723972361278,13.70889,142.38,142.31,9.38]
[1723972362366,13.70889,142.38,142.28,16.56814308]
[1723972362367,0.12549,142.36,142.28,6.10216631]
[1723972362545,0.12549,142.36,142.29,11.49180103]
[1723972362745,0.12549,142.36,142.3,2.11180103]
[1723972362971,27.14949,142.37,142.31,2.11180103]
[1723972363185,27.14949,142.37,142.31,9.38]
[1723972365072,0.12549,142.36,142.29,9.38]
[1723972365291,0.12549,142.36,142.3,2.11180025]
[1723972365455,0.12549,142.36,142.31,2.11180025]
[1723972365648,0.12549,142.36,142.29,9.38]
[1723972365847,0.12549,142.36,142.3,2.11180049]
[1723972366065,0.12549,142.36,142.31,2.11180049]
[1723972366258,0.12549,142.36,142.29,9.38]
[1723972366444,0.12549,142.36,142.3,2.11179892]
[1723972366671,0.12549,142.36,142.31,2.11179892]
[1723972366847,0.12549,142.36,142.29,9.38]
[1723972367044,0.12549,142.36,142.3,2.11179892]
[1723972367248,0.12549,142.36,142.29,9.38]
[1723972367456,0.12549,142.36,142.3,2.1117997]
[1723972367658,0.12549,142.36,142.29,9.38]
[1723972367872,0.12549,142.36,142.3,2.11180049]
[1723972368080,20.0,142.37,142.31,9.38]
[1723972370070,20.0,142.37,142.32,45.0]
[1723972370589,20.0,142.37,142.31,9.38]
[1723972370755,20.0,142.37,142.32,2.11161066]
[1723972370955,20.0,142.37,142.31,9.38]
[1723972371156,20.0,142.37,142.32,2.11160818]
[1723972371370,20.0,142.37,142.31,9.38]
[1723972373279,20.0,142.37,142.32,45.0]
[1723972373492,20.0,142.37,142.31,9.38]
[1723972374188,27.0243,142.37,142.28,16.56669868]
[1723972374486,0.25098,142.36,142.29,11.49174783]
[1723972374691,0.25098,142.36,142.3,2.11174783]
[1723972374876,0.25098,142.36,142.31,2.11174783]
[1723972375186,0.25098,142.36,142.29,9.38]
[1723972375395,27.0243,142.37,142.3,2.11178051]
[1723972375688,27.0243,142.37,142.31,2.11178051]
[1723972375984,27.0243,142.37,142.29,9.38]
[1723972376161,27.0243,142.37,142.3,2.11177036]
[1723972376363,27.0243,142.37,142.31,2.11177036]
[1723972376589,27.0243,142.37,142.29,9.38]
[1723972376987,27.0243,142.37,142.3,2.11177036]
[1723972377186,27.0243,142.37,142.31,2.11176982]
[1723972377505,27.0243,142.37,142.29,9.38]
[1723972377690,27.0243,142.37,142.3,2.11176927]
[1723972377887,27.0243,142.37,142.31,2.11176927]
[1723972378092,27.0243,142.37,142.29,9.38]
[1723972378267,20.0,142.37,142.3,2.11178153]
[1723972378466,20.0,142.37,142.29,9.38]
[1723972378667,20.0,142.37,142.3,2.11178075]
[1723972378890,20.0,142.37,142.29,9.38]
[1723972379093,20.0,142.37,142.3,2.11178075]
[1723972379268,20.0,142.37,142.29,9.38]
[1723972379588,20.0,142.37,142.3,2.11178153]
[1723972379779,20.0,142.37,142.31,2.11178153]
[1723972380096,20.0,142.37,142.29,9.38]
[1723972380291,20.0,142.37,142.3,2.11176927]
[1723972380474,20.0,142.37,142.29,9.38]
[1723972380675,20.0,142.37,142.3,2.1117706]
[1723972380881,20.0,142.37,142.29,9.38]
[1723972381087,20.0,142.37,142.3,2.11177042]
[1723972381402,20.0,142.37,142.29,9.38]
[1723972381594,20.0,142.37,142.3,2.11178111]
[1723972381787,20.0,142.37,142.31,9.38]
[1723972381993,20.0,142.37,142.32,1.40502124]
[1723972382371,20.0,142.37,142.31,9.38]
[1723972382604,6.5598,142.38,142.31,9.38]
[1723972385708,6.5598,142.38,142.33,9.38]
[1723972386071,6.5598,142.38,142.32,45.0]
[1723972386275,6.5598,142.38,142.32,54.38]
[1723972389197,6.5598,142.38,142.32,45.0]
[1723972389511,6.5598,142.38,142.32,9.38]
[1723972390380,6.5598,142.38,142.33,2.11150361]
[1723972390590,6.5598,142.38,142.32,9.38]
[1723972390909,6.5598,142.38,142.33,2.11149213]
[1723972391107,6.5598,142.38,142.32,9.38]
[1723972391310,6.5598,142.38,142.33,2.11149213]
[1723972391493,6.5598,142.38,142.32,9.38]
[1723972391900,6.5598,142.38,142.33,2.11150363]
[1723972392115,6.5598,142.38,142.32,9.38]
[1723972392291,6.5598,142.38,142.33,2.11150363]
[1723972392490,6.5598,142.38,142.32,9.38]
[1723972392791,6.5598,142.38,142.33,2.11150363]
[1723972392994,6.5598,142.38,142.32,9.38]
[1723972393177,6.5598,142.38,142.33,2.11150285]
[1723972393377,6.5598,142.38,142.32,9.38]
[1723972393583,6.5598,142.38,142.33,2.11150363]
[1723972393800,6.5598,142.38,142.32,9.38]
[1723972393981,6.5598,142.38,142.33,2.11150363]
[1723972394182,6.5598,142.38,142.32,9.38]
[1723972394423,6.5598,142.38,142.33,2.11150285]
[1723972394707,6.5598,142.38,142.32,9.38]
[1723972394881,6.5598,142.38,142.33,2.11150285]
[1723972395078,6.5598,142.38,142.32,9.38]
[1723972395303,6.5598,142.38,142.33,2.11150285]
[1723972395512,6.5598,142.38,142.32,9.38]
[1723972395811,6.5598,142.38,142.33,2.11150261]
[1723972396111,6.5598,142.38,142.32,9.38]
[1723972396293,6.5598,142.38,142.33,2.11150339]
[1723972396502,6.5598,142.38,142.34,2.11150339]
[1723972396815,6.5598,142.38,142.32,9.38]
[1723972397018,6.5598,142.38,142.33,2.11150182]
[1723972397188,6.5598,142.38,142.34,2.11150182]
[1723972397386,6.5598,142.38,142.32,15.47791566]
[1723972397583,6.5598,142.38,142.33,2.11150339]
[1723972397820,6.5598,142.38,142.34,2.11150339]
[1723972398110,6.5598,142.38,142.32,9.38]
[1723972398312,6.5598,142.38,142.33,2.11150563]
[1723972398519,6.5598,142.38,142.32,9.38]
[1723972398718,6.5598,142.38,142.33,2.11159391]
[1723972398894,6.5598,142.38,142.32,9.38]
[1723972399091,6.5598,142.38,142.33,2.11159561]
[1723972399303,6.5598,142.38,142.32,9.38]
[1723972399517,6.5598,142.38,142.33,2.11160708]
[1723972399719,13.5834,142.38,142.31,45.0]
[1723972399898,13.5834,142.38,142.32,2.11169183]
[1723972400089,13.5834,142.38,142.31,45.0]
[1723972400090,0.12549,142.37,142.33,2.111714]
[1723972400397,0.12549,142.37,142.3,19.84212833]
[1723972400611,0.12549,142.37,142.31,2.11171635]
[1723972400790,0.12549,142.37,142.32,2.11171635]
[1723972400992,0.12549,142.37,142.33,2.11171635]
[1723972401213,0.12549,142.37,142.3,9.38]
[1723972401417,0.12549,142.37,142.31,2.11177815]
[1723972401600,0.12549,142.37,142.32,2.11177815]
[1723972401916,0.12549,142.37,142.3,9.38]
[1723972402114,0.12549,142.37,142.31,2.11177893]
[1723972402293,0.12549,142.37,142.32,2.11177893]
[1723972402492,0.12549,142.37,142.3,9.38]
[1723972402694,0.12549,142.37,142.31,2.11177893]
[1723972402911,0.12549,142.37,142.32,2.11177893]
[1723972403087,0.12549,142.37,142.3,9.38]
[1723972403290,0.12549,142.37,142.31,2.1117805]
[1723972403498,6.5598,142.38,142.32,11.4917805]
[1723972403697,6.5598,142.38,142.33,2.1117805]
[1723972403909,6.5598,142.38,142.32,9.38]
[1723972404208,6.5598,142.38,142.33,3.51656991]
[1723972404407,6.5598,142.38,142.34,2.1116739]
[1723972404598,6.5598,142.38,142.35,2.1116739]
[1723972404800,6.5598,142.38,142.34,9.38]
[1723972405014,6.5598,142.38,142.35,2.1114046]
[1723972405300,6.5598,142.38,142.34,9.38]
[1723972405508,6.5598,142.38,142.35,2.11140538]
[1723972405820,6.5598,142.38,142.34,9.38]
[1723972408627,6.5598,142.38,142.32,9.38]
[1723972408800,6.5598,142.38,142.33,2.1115566]
[1723972409000,6.5598,142.38,142.34,2.1115566]
[1723972409212,6.5598,142.38,142.32,9.38]
[1723972409529,6.5598,142.38,142.33,2.11155976]
[1723972409705,6.5598,142.38,142.31,9.38]
[1723972409915,6.5598,142.38,142.32,2.11157744]
[1723972410230,6.5598,142.38,142.33,2.11157744]
[1723972410401,6.5598,142.38,142.31,9.38]
[1723972410597,6.5598,142.38,142.32,2.1115897]
[1723972410931,6.5598,142.38,142.33,2.1115897]
[1723972411232,6.5598,142.38,142.31,9.38]
[1723972411432,6.5598,142.38,142.32,2.11160039]
[1723972411626,6.5598,142.38,142.33,2.11160039]
[1723972411796,6.5598,142.38,142.31,9.38]
[1723972411996,6.5598,142.38,142.32,2.11158813]
[1723972412197,6.5598,142.38,142.33,11.49158813]
[1723972412397,6.5598,142.38,142.34,2.11150261]
[1723972412630,6.5598,142.38,142.33,9.38]
[1723972412931,6.5598,142.38,142.34,2.11150261]
[1723972413125,6.5598,142.38,142.32,45.0]
[1723972413309,6.5598,142.38,142.33,2.11150339]
[1723972413508,6.5598,142.38,142.34,2.11150339]
[1723972413718,6.5598,142.38,142.32,54.38]
[1723972413914,6.5598,142.38,142.33,2.11157822]
[1723972414211,6.5598,142.38,142.34,2.11157822]
[1723972414526,6.5598,142.38,142.32,54.38]
[1723972414832,6.5598,142.38,142.33,2.11158891]
[1723972415014,6.5598,142.38,142.34,2.11158891]
[1723972415208,6.5598,142.38,142.32,54.38]
[1723972415402,6.5598,142.38,142.33,2.11158511]
[1723972415717,6.5598,142.38,142.32,54.38]
[1723972415718,6.5598,142.38,142.34,2.11158511]
[1723972415923,6.5598,142.38,142.32,54.38]
[1723972416232,6.5598,142.38,142.33,2.11158891]
[1723972416405,6.5598,142.38,142.32,9.38]
[1723972416602,6.5598,142.38,142.33,2.11160684]
[1723972416806,6.5598,142.38,142.34,2.11158813]
[1723972417115,6.5598,142.38,142.32,9.38]
[1723972417333,6.5598,142.38,142.33,2.11158891]
[1723972417631,6.5598,142.38,142.34,2.11158891]
[1723972417813,6.5598,142.38,142.32,9.38]
[1723972418005,6.5598,142.38,142.33,2.11158891]
[1723972418206,6.5598,142.38,142.34,2.11158891]
[1723972418439,6.5598,142.38,142.32,9.38]
[1723972418737,6.5598,142.38,142.33,2.11158885]
[1723972418939,6.5598,142.38,142.34,2.11158885]
[1723972419237,6.5598,142.38,142.32,9.38]
[1723972419421,6.5598,142.38,142.33,2.11158885]
[1723972419609,6.5598,142.38,142.34,2.11158885]
[1723972419944,6.5598,142.38,142.3,10.45539786]
[1723972420143,6.5598,142.38,142.32,9.38]
[1723972420443,6.5598,142.38,142.33,2.11158885]
[1723972420627,6.5598,142.38,142.32,9.38]
[1723972420628,6.5598,142.38,142.34,2.11158885]
[1723972420933,6.5598,142.38,142.32,9.38]
[1723972421139,6.5598,142.38,142.33,2.11158729]
[1723972421432,6.5598,142.38,142.34,2.11158729]
[1723972421608,6.5598,142.38,142.32,9.38]
[1723972421809,6.5598,142.38,142.33,2.11158887]
[1723972422108,6.5598,142.38,142.34,2.11158887]
[1723972422322,6.5598,142.38,142.32,9.38]
[1723972422543,6.5598,142.38,142.33,2.11158954]
[1723972422808,6.5598,142.38,142.34,2.11158954]
[1723972423040,6.5598,142.38,142.32,9.38]
[1723972423229,6.5598,142.38,142.33,2.11158954]
[1723972423430,6.5598,142.38,142.34,2.11158954]
[1723972423730,6.5598,142.38,142.32,9.38]
[1723972424023,6.5598,142.38,142.33,2.1115873]
[1723972424337,6.5598,142.38,142.34,12.89642134]
[1723972424524,6.5598,142.38,142.35,2.1115873]
[1723972424716,6.5598,142.38,142.36,1.40463667]
[1723972425069,6.5598,142.38,142.34,9.38]
[1723972425215,6.5598,142.38,142.35,2.11141486]
[1723972425404,6.5598,142.38,142.34,9.38]
[1723972425720,6.5598,142.38,142.35,2.11141643]
[1723972425921,6.5598,142.38,142.34,9.38]
[1723972426140,6.5598,142.38,142.35,2.11141565]
[1723972426350,6.5598,142.38,142.34,9.38]
[1723972426655,6.5598,142.38,142.35,2.11141341]
[1723972426856,6.5598,142.38,142.34,9.38]
[1723972430638,6.5598,142.38,142.35,2.11150189]
[1723972430831,6.5598,142.38,142.34,9.38]
[1723972432453,15.4289,142.39,142.35,3.51537174]
[1723972432757,15.4289,142.39,142.35,1.40387106]
[1723972434946,15.4289,142.39,142.34,9.38]
[1723972435268,15.4289,142.39,142.35,3.51625107]
[1723972435435,15.4289,142.39,142.35,1.40475561]
[1723972435961,15.4289,142.39,142.34,9.38]
[1723972436163,15.4289,142.39,142.35,2.11148238]
[1723972436359,15.4289,142.39,142.34,9.38]
[1723972436572,15.4289,142.39,142.35,2.11148238]
[1723972436749,15.4289,142.39,142.34,9.38]
[1723972436941,15.4289,142.39,142.35,2.11148316]
[1723972437140,15.4289,142.39,142.34,9.38]
[1723972437460,15.4289,142.39,142.35,2.11148316]
[1723972437769,15.4289,142.39,142.34,9.38]
[1723972438070,15.4289,142.39,142.35,2.11148238]
[1723972438275,15.4289,142.39,142.35,1.40426888]
[1723972439250,6.6292,142.42,142.36,11.49132215]
[1723972439451,6.6292,142.42,142.36,9.38]
[1723972439840,6.6292,142.42,142.37,1.40360581]
[1723972441565,6.6292,142.42,142.36,9.38]
[1723972445547,6.6292,142.42,142.37,1.25515866]
[1723972446358,6.6292,142.42,142.38,9.38]
[1723972449144,6.6292,142.42,142.34,1.25515866]
[1723972449348,6.6292,142.42,142.36,9.38]
[1723972450972,6.6292,142.42,142.37,2.11108579]
[1723972451158,6.6292,142.42,142.36,9.38]
[1723972451761,6.6292,142.42,142.37,2.11107289]
[1723972451955,6.6292,142.42,142.36,9.38]
[1723972452159,6.6292,142.42,142.38,9.38]
[1723972454478,6.6292,142.42,142.39,1.40439651]
[1723972456092,6.6292,142.42,142.38,9.38]
[1723972458566,6.6292,142.42,142.4,9.38]
[1723972458760,17.0053469,142.43,142.4,9.38]
[1723972459163,0.8406469,142.43,142.41,1.40418963]
[1723972459367,0.8406469,142.43,142.4,9.38]
[1723972460283,0.8406469,142.43,142.41,1.40369662]
[1723972460461,0.8406469,142.43,142.4,9.38]
[1723972465571,0.8406469,142.43,142.41,1.40344442]
[1723972465772,0.8406469,142.43,142.4,9.38]
[1723972467602,0.8406469,142.43,142.37,2.11062525]
[1723972467787,0.8406469,142.43,142.4,9.38]
[1723972469365,0.8406469,142.43,142.42,9.38]
[1723972469581,0.8406469,142.43,142.42,54.38]
[1723972469771,0.8406469,142.43,142.42,9.38]
[1723972469970,0.8406469,142.43,142.4,2.1103787]
[1723972470181,0.8406469,142.43,142.41,9.38]
[1723972470394,0.8406469,142.43,142.4,20.0]
[1723972470578,0.8406469,142.43,142.41,9.38]
[1723972480693,0.8406469,142.43,142.4,2.11036593]
[1723972480894,0.8406469,142.43,142.4,54.38]
[1723972484486,0.8406469,142.43,142.4,9.38]
[1723972484998,0.8406469,142.43,142.39,2.11042481]
[1723972485199,0.8406469,142.43,142.4,9.38]
[1723972487916,0.8406469,142.43,142.42,9.38]
[1723972490519,6.5287,142.51,142.42,11.61559403]
[1723972490691,6.5287,142.51,142.47,9.38]
[1723972491186,6.5287,142.51,142.48,1.40311557]
[1723972491916,6.5287,142.51,142.47,9.38]
[1723972492116,6.5287,142.51,142.48,1.40314613]
[1723972492793,15.8043,142.53,142.48,1.40314613]
[1723972493819,15.8043,142.53,142.48,1.40354539]
[1723972494296,14.8043,142.53,142.48,1.40354539]
[1723972495313,14.8043,142.53,142.47,9.38]
[1723972495609,0.12549,142.52,142.47,9.38]
[1723972496416,0.12549,142.52,142.45,9.38]
[1723972496919,0.12549,142.52,142.44,2.10927311]
[1723972497135,6.5287,142.49,142.43,2.10927311]
[1723972497424,0.12549,142.48,142.41,2.10957309]
[1723972497913,0.12549,142.48,142.41,2.10974917]
[1723972498122,0.12549,142.48,142.41,9.38]
[1723972498306,6.5287,142.49,142.43,9.38]
[1723972502501,6.5287,142.49,142.43,11.48963466]
[1723972502830,6.5287,142.49,142.43,9.38]
[1723972503025,20.0,142.52,142.44,45.0]
[1723972503330,20.0,142.52,142.45,1.40296224]
[1723972503522,20.0,142.52,142.46,9.38]
[1723972505406,0.12549,142.52,142.46,9.38]
[1723972507613,21.333,142.53,142.46,9.38]
[1723972510616,0.12549,142.52,142.44,45.0]
[1723972510930,0.12549,142.52,142.45,9.38]
[1723972511137,0.37647,142.52,142.45,9.38]
[1723972511306,0.12549,142.52,142.45,9.38]
[1723972511642,21.333,142.53,142.45,9.38]
[1723972514430,21.333,142.53,142.46,9.38]
[1723972520911,21.333,142.53,142.48,9.38]
[1723972521306,21.333,142.53,142.45,2.10912107]
[1723972521539,21.333,142.53,142.48,9.38]
[1723972521719,6.5287,142.53,142.48,9.38]
[1723972530738,6.5287,142.53,142.48,11.48882746]
[1723972530933,6.5287,142.53,142.48,9.38]
[1723972531348,6.5287,142.53,142.48,11.48882746]
[1723972531551,6.5287,142.53,142.48,9.38]
[1723972531933,6.5287,142.53,142.48,11.48882746]
[1723972532131,6.5287,142.53,142.49,2.10882746]
[1723972532956,6.5287,142.53,142.49,2.10880854]
[1723972533458,6.5287,142.53,142.49,2.10880878]
[1723972534235,6.5287,142.53,142.48,9.38]
[1723972534440,6.5287,142.53,142.49,2.1088083]
[1723972534747,6.5287,142.53,142.48,9.38]
[1723972534946,6.5287,142.53,142.49,2.10880908]
[1723972535156,6.5287,142.53,142.48,9.38]
[1723972535157,6.5287,142.53,142.5,2.1088083]
[1723972535330,6.5287,142.53,142.49,2.1088083]
[1723972535650,6.5287,142.53,142.5,2.1088083]
[1723972535957,6.5287,142.53,142.48,9.38]
[1723972535958,6.5287,142.53,142.49,2.1088083]
[1723972536140,6.5287,142.53,142.5,11.4888083]
[1723972536337,6.5287,142.53,142.5,9.38]
[1723972536730,6.5287,142.53,142.51,2.10864215]
[1723972536931,21.6707,142.56,142.5,9.38]
[1723972537263,21.6707,142.56,142.51,2.10867433]
[1723972537435,21.6707,142.56,142.5,9.38]
[1723972537631,21.6707,142.56,142.51,2.1086709]
[1723972537947,21.6707,142.56,142.5,9.38]
[1723972538132,21.6707,142.56,142.51,2.10869659]
[1723972538328,21.6707,142.56,142.5,9.38]
[1723972538532,21.6707,142.56,142.51,2.10869533]
[1723972538725,31.0507,142.56,142.47,10.42470358]
[1723972538966,31.0507,142.56,142.48,47.10871679]
[1723972539161,31.0507,142.56,142.49,2.10871679]
[1723972539364,31.0507,142.56,142.5,2.10871679]
[1723972539571,31.0507,142.56,142.51,2.10871679]
[1723972539779,31.0507,142.56,142.48,54.38]
[1723972539961,31.0507,142.56,142.49,2.10869526]
[1723972540164,31.0507,142.56,142.5,2.10869526]
[1723972540379,21.6707,142.56,142.51,2.10869526]
[1723972540564,21.6707,142.56,142.52,9.38]
[1723972540763,6.1062,142.56,142.52,9.38]
[1723972540961,6.1062,142.56,142.54,9.38]
[1723972541162,0.8406469,142.57,142.54,9.38]
[1723972543499,0.8406469,142.57,142.54,11.48821211]
[1723972543655,0.8406469,142.57,142.54,9.38]
[1723972544077,0.8406469,142.57,142.54,11.48821211]
[1723972544378,0.8406469,142.57,142.56,9.38]
[1723972545983,0.8406469,142.57,142.54,11.48800283]
[1723972546186,0.8406469,142.57,142.54,9.38]
[1723972546383,0.8406469,142.57,142.53,2.10800283]
[1723972546761,0.8406469,142.57,142.52,9.38]
[1723972547268,0.8406469,142.57,142.52,2.10824431]
[1723972547477,0.8406469,142.57,142.52,9.38]
[1723972547965,0.8406469,142.57,142.52,11.48824431]
[1723972548164,0.8406469,142.57,142.52,9.38]
[1723972548659,0.8406469,142.57,142.54,9.38]
[1723972550962,0.8406469,142.57,142.53,2.10812745]
[1723972551165,0.8406469,142.57,142.52,2.10812745]
[1723972552273,0.8406469,142.57,142.51,9.38]
[1723972552661,0.8406469,142.57,142.49,2.10812745]
[1723972552892,0.8406469,142.57,142.5,11.48812745]
[1723972553092,0.12549,142.56,142.5,2.10812745]
[1723972553273,26.90738,142.56,142.49,2.10872968]
[1723972553968,33.92188,142.56,142.49,2.10872968]
[1723972554294,33.92188,142.56,142.49,11.48872968]
[1723972556089,26.6564,142.56,142.5,2.10863287]
[1723972556795,6.6564,142.56,142.51,2.10857094]
[1723972556962,6.6564,142.56,142.49,9.38]
[1723972556963,6.6564,142.56,142.5,2.10859169]
[1723972557165,6.6564,142.56,142.49,9.38]
[1723972557568,6.6564,142.56,142.5,2.10859349]
[1723972557774,6.6564,142.56,142.51,2.10857094]
[1723972557999,6.6564,142.56,142.5,2.10857094]
[1723972558312,6.6564,142.56,142.51,2.10859247]
[1723972558467,6.6564,142.56,142.5,2.10859247]
[1723972558803,6.6564,142.56,142.51,2.10859247]
[1723972559094,6.6564,142.56,142.5,2.10859247]
[1723972559396,6.6564,142.56,142.51,2.10859247]
[1723972559590,6.6564,142.56,142.5,2.10859247]
[1723972559794,6.6564,142.56,142.51,11.48859247]
[1723972560101,6.6564,142.56,142.48,25.76365236]
[1723972560102,6.6564,142.56,142.53,9.38]
[1723972562299,0.8406469,142.57,142.53,9.38]
[1723972562994,0.8406469,142.57,142.53,2.10832239]
[1723972563174,0.8406469,142.57,142.52,9.38]
[1723972563374,0.8406469,142.57,142.53,2.10831544]
[1723972563701,0.8406469,142.57,142.52,9.38]
[1723972563879,0.8406469,142.57,142.53,2.10831466]
[1723972564080,0.8406469,142.57,142.5,10.42984735]
[1723972564081,0.8406469,142.57,142.54,9.38]
[1723972564576,0.8406469,142.57,142.51,47.10821217]
[1723972564577,0.8406469,142.57,142.51,55.42858556]
[1723972564902,0.8406469,142.57,142.55,9.38]
[1723972566311,21.7593,142.66,142.61,9.38]
[1723972566471,21.7593,142.66,142.63,9.38]
[1723972566874,6.6564,142.66,142.63,9.38]
[1723972567299,6.6564,142.66,142.64,9.38]
[1723972567510,15.1029,142.69,142.6,2.10718929]
[1723972567511,21.7593,142.69,142.6,2.10718929]
[1723972567801,21.7593,142.69,142.61,2.10718929]
[1723972567972,21.7593,142.69,142.62,9.38]
[1723972568169,21.7593,142.69,142.6,22.10706241]
[1723972568398,21.7593,142.69,142.62,30.0]
[1723972569710,0.12549,142.68,142.61,9.38]
[1723972570199,0.25098,142.68,142.61,9.38]
[1723972570415,0.12549,142.68,142.61,9.38]
[1723972570595,21.7593,142.69,142.64,9.38]
[1723972572588,21.7593,142.69,142.64,39.38]
[1723972573084,21.7593,142.69,142.62,9.38]
[1723972573710,0.8406469,142.72,142.66,9.38]
[1723972575410,20.8406469,142.72,142.66,9.38]
[1723972575712,20.8406469,142.72,142.64,9.38]
[1723972575884,20.8406469,142.72,142.63,45.0]
[1723972576086,0.12549,142.71,142.64,39.38]
[1723972576712,0.25098,142.71,142.64,39.38]
[1723972577718,0.25098,142.71,142.59,37.52]
[1723972577719,0.12549,142.67,142.59,9.38]
[1723972577906,16.17369,142.65,142.54,16.2132]
[1723972578103,20.0,142.64,142.54,16.2132]
[1723972578332,16.17369,142.65,142.54,16.2132]
[1723972578994,16.0482,142.65,142.6,9.38]
[1723972579910,16.0482,142.65,142.56,0.12549]
[1723972580100,16.0482,142.65,142.56,65.50196]
[1723972580295,16.0482,142.65,142.56,20.0]
[1723972580901,16.0482,142.65,142.58,23.16]
[1723972581702,16.0482,142.65,142.59,45.0]
[1723972581907,6.1702,142.66,142.59,45.0]
[1723972582412,6.1702,142.66,142.6,1.40186086]
[1723972582625,16.0482,142.69,142.62,23.16]
[1723972582821,6.1702,142.7,142.64,23.16]
[1723972587421,0.8406469,142.72,142.64,23.16]
[1723972587603,20.8406469,142.72,142.64,23.16]
[1723972588530,0.8406469,142.72,142.63,0.25098]
[1723972588832,0.8406469,142.72,142.64,0.25098]
[1723972589323,0.8406469,142.72,142.65,0.12549]
[1723972589512,0.8406469,142.72,142.65,23.28549]
[1723972589710,0.8406469,142.72,142.66,45.0]
[1723972591825,0.8406469,142.72,142.67,23.28549]
[1723972592132,0.8406469,142.72,142.68,65.12549]
[1723972592722,0.8406469,142.72,142.67,23.16]
[1723972592918,0.8406469,142.72,142.66,15.8023]
[1723972593127,0.8406469,142.72,142.67,65.0]
[1723972593802,0.8406469,142.72,142.67,88.16]
[1723972594723,0.8406469,142.72,142.67,20.0]
[1723972594924,0.8406469,142.72,142.63,23.16]
[1723972595310,0.12549,142.71,142.63,23.16]
[1723972595513,0.12549,142.71,142.62,15.8023]
[1723972595721,0.25098,142.71,142.62,15.8023]
[1723972596106,0.12549,142.69,142.62,15.8023]
[1723972597228,6.4787,142.7,142.62,15.8023]
[1723972598114,6.4787,142.7,142.63,45.0]
[1723972598721,6.4787,142.7,142.63,68.16]
[1723972600435,6.4787,142.7,142.64,20.12549]
[1723972600620,6.4787,142.7,142.65,45.0]